[Event "Late-Titled-Tuesday-Blitz-February-06-2024"]
[Site "Chess.com"]
[Date "2024.02.06"]
[Round "6"]
[White "Sanyura"]
[Black "ninguno46"]
[Result "0-1"]
[WhiteElo "2680"]
[BlackElo "2539"]
[TimeControl "180+1"]
[EndTime "15:07:20 PST"]
[Termination "ninguno46 won by resignation"]

1. e4 {[%clk 0:02:45.9]} 1... c5 {[%clk 0:02:59]} 2. Nf3 {[%clk 0:02:45.8]} 2...
Nc6 {[%clk 0:02:59]} 3. d4 {[%clk 0:02:45.1]} 3... cxd4 {[%clk 0:02:58.6]} 4.
Nxd4 {[%clk 0:02:46]} 4... g6 {[%clk 0:02:58.7]} 5. c4 {[%clk 0:02:43.8]} 5...
Nf6 {[%clk 0:02:58.1]} 6. Nc3 {[%clk 0:02:43.3]} 6... d6 {[%clk 0:02:58.3]} 7.
f3 {[%clk 0:02:43.3]} 7... Nxd4 {[%clk 0:02:56.9]} 8. Qxd4 {[%clk 0:02:43.1]}
8... Bg7 {[%clk 0:02:57.5]} 9. Be3 {[%clk 0:02:43.7]} 9... O-O {[%clk
0:02:56.7]} 10. Qd2 {[%clk 0:02:44.3]} 10... a5 {[%clk 0:02:56.4]} 11. Be2
{[%clk 0:02:44.9]} 11... a4 {[%clk 0:02:56.2]} 12. O-O {[%clk 0:02:45.1]} 12...
Bd7 {[%clk 0:02:50.4]} 13. b3 {[%clk 0:02:43.7]} 13... Qa5 {[%clk 0:02:46.8]}
14. Rac1 {[%clk 0:02:42.1]} 14... Rfc8 {[%clk 0:02:36.5]} 15. Rfd1 {[%clk
0:02:41.6]} 15... axb3 {[%clk 0:02:35.8]} 16. axb3 {[%clk 0:02:41.6]} 16... Qb4
{[%clk 0:02:35.7]} 17. Bd4 {[%clk 0:02:38.5]} 17... Be6 {[%clk 0:02:29.7]} 18.
Bxf6 {[%clk 0:02:31.5]} 18... Bxf6 {[%clk 0:02:28.7]} 19. Nd5 {[%clk 0:02:32.1]}
19... Qxd2 {[%clk 0:02:26.2]} 20. Nxf6+ {[%clk 0:02:32.2]} 20... Kg7 {[%clk
0:02:22.2]} 21. Rxd2 {[%clk 0:02:33.1]} 21... Kxf6 {[%clk 0:02:20]} 22. Kf1
{[%clk 0:02:32.4]} 22... b5 {[%clk 0:02:16.4]} 23. Kf2 {[%clk 0:02:32.4]} 23...
bxc4 {[%clk 0:02:16.4]} 24. bxc4 {[%clk 0:02:33.3]} 24... Ra4 {[%clk 0:02:13.9]}
25. Rdc2 {[%clk 0:02:33.7]} 25... g5 {[%clk 0:02:12.9]} 26. g3 {[%clk
0:02:33.3]} 26... Ke5 {[%clk 0:02:08.9]} 27. Ke3 {[%clk 0:02:33.6]} 27... Ra3+
{[%clk 0:02:08.4]} 28. Bd3 {[%clk 0:02:34.1]} 28... Kf6 {[%clk 0:02:05.9]} 29.
f4 {[%clk 0:02:33.8]} 29... gxf4+ {[%clk 0:02:01.5]} 30. gxf4 {[%clk 0:02:34.7]}
30... Rb8 {[%clk 0:01:59.2]} 31. Kd4 {[%clk 0:02:32.9]} 31... Rbb3 {[%clk
0:01:57.5]} 32. e5+ {[%clk 0:02:33]} 32... Kg7 {[%clk 0:01:57.1]} 33. Be4 {[%clk
0:02:30.6]} 33... dxe5+ {[%clk 0:01:50.3]} 34. fxe5 {[%clk 0:02:31.5]} 34... Ra4
{[%clk 0:01:42.9]} 35. Rg1+ {[%clk 0:02:28.6]} 35... Kh6 {[%clk 0:01:41.7]} 36.
Bd5 {[%clk 0:02:07.9]} 36... Bf5 {[%clk 0:01:39.8]} 37. Rf2 {[%clk 0:01:58.8]}
37... e6 {[%clk 0:01:31]} 38. Rf4 {[%clk 0:01:57.7]} 38... Rh3 {[%clk
0:01:29.4]} 39. Be4 {[%clk 0:01:06.1]} 39... Bg6 {[%clk 0:01:07.2]} 40. Bxg6
{[%clk 0:00:49.6]} 40... fxg6 {[%clk 0:01:06.5]} 41. Kc5 {[%clk 0:00:47.4]}
41... Rxh2 {[%clk 0:01:00.9]} 42. Kd6 {[%clk 0:00:45.7]} 42... Ra6+ {[%clk
0:00:59.4]} 43. Ke7 {[%clk 0:00:44.9]} 43... Rc6 {[%clk 0:00:51.3]} 44. Kf6
{[%clk 0:00:39.6]} 44... Rh5 {[%clk 0:00:48.2]} 45. Rg2 {[%clk 0:00:26.9]} 45...
Rh3 {[%clk 0:00:43.9]} 46. Rd2 {[%clk 0:00:16.6]} 46... g5 {[%clk 0:00:38.3]}
47. Re4 {[%clk 0:00:12.4]} 47... Rf3+ {[%clk 0:00:37.5]} 48. Ke7 {[%clk
0:00:12.5]} 48... Rf4 {[%clk 0:00:35.2]} 49. Rxf4 {[%clk 0:00:10]} 49... gxf4
{[%clk 0:00:35]} 50. Kf6 {[%clk 0:00:05.3]} 50... Kh5 {[%clk 0:00:32.8]} 51. Rd6
{[%clk 0:00:05.1]} 51... Rxc4 {[%clk 0:00:32]} 52. Kxe6 {[%clk 0:00:04]} 52...
Kg4 {[%clk 0:00:31.3]} 53. Kd5 {[%clk 0:00:03.3]} 53... Rc1 {[%clk 0:00:30.3]}
54. e6 {[%clk 0:00:03.6]} 54... Re1 {[%clk 0:00:30.1]} 55. Rd8 {[%clk
0:00:02.8]} 55... f3 {[%clk 0:00:28.9]} 56. Rg8+ {[%clk 0:00:03.3]} 56... Kh3
{[%clk 0:00:28.7]} 57. Kd6 {[%clk 0:00:03.4]} 57... f2 {[%clk 0:00:28.5]} 58.
Rg7 {[%clk 0:00:03.1]} 58... f1=Q {[%clk 0:00:27.8]} 59. Rxh7+ {[%clk
0:00:03.4]} 59... Kg2 {[%clk 0:00:28]} 60. Rg7+ {[%clk 0:00:03.8]} 60... Kh3
{[%clk 0:00:28.4]} 61. e7 {[%clk 0:00:04.3]} 61... Rd1+ {[%clk 0:00:27.9]} 62.
Ke6 {[%clk 0:00:04.5]} 62... Qe2+ {[%clk 0:00:27.5]} 63. Kf7 {[%clk 0:00:04.7]}
63... Rd7 {[%clk 0:00:26.5]} 64. Kg8 {[%clk 0:00:04.4]} 64... Rxe7 {[%clk
0:00:26.1]} 0-1

[Event "Late-Titled-Tuesday-Blitz-February-06-2024"]
[Site "Chess.com"]
[Date "2024.02.06"]
[Round "6"]
[White "wild3000"]
[Black "masnyszachistaaa"]
[Result "0-1"]
[WhiteElo "2362"]
[BlackElo "2549"]
[TimeControl "180+1"]
[EndTime "15:07:21 PST"]
[Termination "masnyszachistaaa won on time"]

1. d4 {[%clk 0:02:27]} 1... d6 {[%clk 0:02:52.4]} 2. e3 {[%clk 0:02:27.9]} 2...
e5 {[%clk 0:02:47.5]} 3. dxe5 {[%clk 0:02:27.6]} 3... dxe5 {[%clk 0:02:48.4]} 4.
Qxd8+ {[%clk 0:02:26.3]} 4... Kxd8 {[%clk 0:02:49.3]} 5. Nf3 {[%clk 0:02:23.5]}
5... f6 {[%clk 0:02:44.2]} 6. Nc3 {[%clk 0:02:22.1]} 6... c6 {[%clk 0:02:43]} 7.
Bd2 {[%clk 0:02:21.7]} 7... Kc7 {[%clk 0:02:42.8]} 8. O-O-O {[%clk 0:02:21.8]}
8... Be6 {[%clk 0:02:40.3]} 9. Bd3 {[%clk 0:02:12.2]} 9... Nd7 {[%clk
0:02:39.4]} 10. Kb1 {[%clk 0:02:10.1]} 10... Nc5 {[%clk 0:02:39]} 11. Bc1 {[%clk
0:02:10.3]} 11... Nxd3 {[%clk 0:02:37.7]} 12. cxd3 {[%clk 0:02:10.2]} 12... Bg4
{[%clk 0:02:20.5]} 13. h3 {[%clk 0:02:09.5]} 13... Bxf3 {[%clk 0:01:58.3]} 14.
gxf3 {[%clk 0:02:10.4]} 14... Rd8 {[%clk 0:01:58]} 15. h4 {[%clk 0:02:08.2]}
15... Ne7 {[%clk 0:01:36.7]} 16. h5 {[%clk 0:02:07.9]} 16... Nf5 {[%clk
0:01:36.4]} 17. Ne4 {[%clk 0:02:02.5]} 17... Be7 {[%clk 0:01:32.5]} 18. Kc2
{[%clk 0:01:55.7]} 18... Rd7 {[%clk 0:01:32.1]} 19. Bd2 {[%clk 0:01:45.6]} 19...
Rhd8 {[%clk 0:01:31.1]} 20. Bc3 {[%clk 0:01:45.9]} 20... Bf8 {[%clk 0:01:28.7]}
21. a3 {[%clk 0:01:37.1]} 21... b6 {[%clk 0:01:13.3]} 22. Ng3 {[%clk 0:01:22.1]}
22... Ne7 {[%clk 0:01:12.3]} 23. Ne4 {[%clk 0:01:18]} 23... Nd5 {[%clk
0:01:11.5]} 24. Ng3 {[%clk 0:01:06]} 24... Nxc3 {[%clk 0:00:59.9]} 25. Kxc3
{[%clk 0:01:04.3]} 25... Kd6 {[%clk 0:01:00.3]} 26. Ne2 {[%clk 0:00:53.9]} 26...
Ke6 {[%clk 0:00:56.9]} 27. f4 {[%clk 0:00:51.3]} 27... c5 {[%clk 0:00:53.3]} 28.
fxe5 {[%clk 0:00:50.7]} 28... Kxe5 {[%clk 0:00:52.4]} 29. f4+ {[%clk 0:00:47.5]}
29... Ke6 {[%clk 0:00:51.9]} 30. d4 {[%clk 0:00:43.4]} 30... Kf7 {[%clk
0:00:45.5]} 31. Kc4 {[%clk 0:00:31.5]} 31... cxd4 {[%clk 0:00:41.2]} 32. Nxd4
{[%clk 0:00:30.2]} 32... Bc5 {[%clk 0:00:40.7]} 33. b4 {[%clk 0:00:26.4]} 33...
Be7 {[%clk 0:00:27.3]} 34. Rd3 {[%clk 0:00:18.9]} 34... a6 {[%clk 0:00:20.3]}
35. Rhd1 {[%clk 0:00:18.3]} 35... b5+ {[%clk 0:00:20.4]} 36. Kc3 {[%clk
0:00:16.4]} 36... Rd5 {[%clk 0:00:18.8]} 37. Kc2 {[%clk 0:00:09.5]} 37... Rxh5
{[%clk 0:00:17.2]} 38. Nb3 {[%clk 0:00:06.3]} 38... Rc8+ {[%clk 0:00:15.1]} 39.
Kb2 {[%clk 0:00:06.4]} 39... Rh2+ {[%clk 0:00:14.9]} 40. R3d2 {[%clk 0:00:06.4]}
40... Rxd2+ {[%clk 0:00:15]} 41. Rxd2 {[%clk 0:00:06.5]} 41... h5 {[%clk
0:00:13.4]} 42. Rh2 {[%clk 0:00:06.5]} 42... Rh8 {[%clk 0:00:12.3]} 43. Nd4
{[%clk 0:00:06.7]} 43... g5 {[%clk 0:00:12.3]} 44. fxg5 {[%clk 0:00:06.7]} 44...
fxg5 {[%clk 0:00:13.2]} 45. Kc2 {[%clk 0:00:06]} 45... Bf6 {[%clk 0:00:13.1]}
46. Kd3 {[%clk 0:00:04.9]} 46... Bxd4 {[%clk 0:00:09.8]} 47. exd4 {[%clk
0:00:04.1]} 47... Ke6 {[%clk 0:00:09.8]} 48. Ke4 {[%clk 0:00:04.3]} 48... h4
{[%clk 0:00:10.3]} 49. d5+ {[%clk 0:00:02.8]} 49... Kd6 {[%clk 0:00:10.1]} 50.
Rc2 {[%clk 0:00:02.9]} 50... h3 {[%clk 0:00:09.4]} 51. Rc6+ {[%clk 0:00:03]}
51... Kd7 {[%clk 0:00:09.8]} 52. Rxa6 {[%clk 0:00:02.6]} 52... h2 {[%clk
0:00:09.2]} 53. Ra7+ {[%clk 0:00:03.5]} 53... Kd6 {[%clk 0:00:09.6]} 54. Ra6+
{[%clk 0:00:03.5]} 54... Kc7 {[%clk 0:00:10.2]} 55. d6+ {[%clk 0:00:02.9]} 55...
Kb7 {[%clk 0:00:09.7]} 0-1

[Event "Late-Titled-Tuesday-Blitz-February-06-2024"]
[Site "Chess.com"]
[Date "2024.02.06"]
[Round "6"]
[White "Ducke13"]
[Black "DeArron_Fox"]
[Result "0-1"]
[WhiteElo "2297"]
[BlackElo "2498"]
[TimeControl "180+1"]
[EndTime "15:07:22 PST"]
[Termination "DeArron_Fox won by checkmate"]

1. d4 {[%clk 0:02:45.7]} 1... d5 {[%clk 0:02:59.5]} 2. Nf3 {[%clk 0:02:45.3]}
2... Nf6 {[%clk 0:02:59.9]} 3. g3 {[%clk 0:02:45.4]} 3... Bf5 {[%clk 0:02:58.2]}
4. c4 {[%clk 0:02:45.1]} 4... c6 {[%clk 0:02:57.5]} 5. Nc3 {[%clk 0:02:45.1]}
5... e6 {[%clk 0:02:56]} 6. Nh4 {[%clk 0:02:44.3]} 6... Be4 {[%clk 0:02:27.9]}
7. f3 {[%clk 0:02:42.9]} 7... Bg6 {[%clk 0:02:23]} 8. Qb3 {[%clk 0:02:43.5]}
8... Qb6 {[%clk 0:02:21.8]} 9. Nxg6 {[%clk 0:02:41.4]} 9... hxg6 {[%clk
0:02:21.3]} 10. c5 {[%clk 0:02:40.8]} 10... Qxb3 {[%clk 0:02:05.8]} 11. axb3
{[%clk 0:02:41.7]} 11... e5 {[%clk 0:01:36.9]} 12. e3 {[%clk 0:02:37.1]} 12...
g5 {[%clk 0:00:46.5]} 13. b4 {[%clk 0:02:33.5]} 13... exd4 {[%clk 0:00:40.5]}
14. exd4 {[%clk 0:02:32.9]} 14... g4 {[%clk 0:00:37.3]} 15. Be2 {[%clk
0:02:18.5]} 15... gxf3 {[%clk 0:00:28.6]} 16. Bxf3 {[%clk 0:02:19.4]} 16... g6
{[%clk 0:00:12.2]} 17. b5 {[%clk 0:02:16.2]} 17... Bg7 {[%clk 0:00:12.2]} 18.
Be3 {[%clk 0:01:56.7]} 18... O-O {[%clk 0:00:11]} 19. Kf2 {[%clk 0:01:51.8]}
19... cxb5 {[%clk 0:00:07.2]} 20. Nxb5 {[%clk 0:01:43.7]} 20... Nc6 {[%clk
0:00:07.2]} 21. Ra4 {[%clk 0:01:35.7]} 21... a6 {[%clk 0:00:02.3]} 22. Nd6
{[%clk 0:01:33.6]} 22... Rab8 {[%clk 0:00:02.9]} 23. b4 {[%clk 0:01:29.6]} 23...
Rfe8 {[%clk 0:00:03.2]} 24. Nxe8 {[%clk 0:01:28.8]} 24... Rxe8 {[%clk
0:00:03.7]} 25. Rb1 {[%clk 0:01:23.1]} 25... Ne4+ {[%clk 0:00:04.1]} 26. Bxe4
{[%clk 0:01:18.5]} 26... Rxe4 {[%clk 0:00:05]} 27. b5 {[%clk 0:01:13.5]} 27...
axb5 {[%clk 0:00:03.8]} 28. Rxb5 {[%clk 0:01:10.8]} 28... Bxd4 {[%clk
0:00:03.4]} 29. Bxd4 {[%clk 0:01:02.4]} 29... Nxd4 {[%clk 0:00:04.3]} 30. Rxb7
{[%clk 0:00:36.6]} 30... Re2+ {[%clk 0:00:03.4]} 31. Kf1 {[%clk 0:00:33.3]}
31... Rd2 {[%clk 0:00:03.8]} 32. Ra8+ {[%clk 0:00:17.3]} 32... Kg7 {[%clk
0:00:03.4]} 33. Raa7 {[%clk 0:00:18.2]} 33... Kh6 {[%clk 0:00:02.2]} 34. Rxf7
{[%clk 0:00:17.6]} 34... Rc2 {[%clk 0:00:02.3]} 35. h4 {[%clk 0:00:16.4]} 35...
Kh5 {[%clk 0:00:02.6]} 36. Rh7+ {[%clk 0:00:13.1]} 36... Kg4 {[%clk 0:00:02.6]}
37. Ra4 {[%clk 0:00:13.3]} 37... Rc4 {[%clk 0:00:01.6]} 38. Rxc4 {[%clk
0:00:12.8]} 38... dxc4 {[%clk 0:00:02.5]} 39. Kf2 {[%clk 0:00:11.5]} 39... c3
{[%clk 0:00:02.6]} 40. Ke3 {[%clk 0:00:11.5]} 40... Nb3 {[%clk 0:00:02.7]} 41.
Kd3 {[%clk 0:00:11.5]} 41... Nxc5+ {[%clk 0:00:02.5]} 42. Kxc3 {[%clk
0:00:12.1]} 42... Ne4+ {[%clk 0:00:02.8]} 43. Kd4 {[%clk 0:00:12.1]} 43... Nxg3
{[%clk 0:00:03.7]} 44. Rh6 {[%clk 0:00:11.3]} 44... Nf5+ {[%clk 0:00:02.1]} 45.
Ke5 {[%clk 0:00:11.9]} 45... Nxh6 {[%clk 0:00:03]} 46. Kf6 {[%clk 0:00:12.3]}
46... Kh5 {[%clk 0:00:03.2]} 47. Kg7 {[%clk 0:00:11.5]} 47... Nf5+ {[%clk
0:00:03.5]} 48. Kf6 {[%clk 0:00:12.1]} 48... Nxh4 {[%clk 0:00:04.4]} 49. Ke5
{[%clk 0:00:12]} 49... g5 {[%clk 0:00:04.2]} 50. Ke4 {[%clk 0:00:11.6]} 50... g4
{[%clk 0:00:05.1]} 51. Kf4 {[%clk 0:00:11.8]} 51... Ng6+ {[%clk 0:00:05.1]} 52.
Kg3 {[%clk 0:00:09.2]} 52... Kg5 {[%clk 0:00:05.3]} 53. Kg2 {[%clk 0:00:09.9]}
53... Kf4 {[%clk 0:00:06.2]} 54. Kf2 {[%clk 0:00:10.4]} 54... Ne5 {[%clk
0:00:06.3]} 55. Kg2 {[%clk 0:00:11.3]} 55... Nf3 {[%clk 0:00:06.9]} 56. Kf2
{[%clk 0:00:12.1]} 56... g3+ {[%clk 0:00:07.1]} 57. Kg2 {[%clk 0:00:13]} 57...
Ne1+ {[%clk 0:00:07.3]} 58. Kg1 {[%clk 0:00:13.9]} 58... Kf3 {[%clk 0:00:07.2]}
59. Kf1 {[%clk 0:00:14.3]} 59... g2+ {[%clk 0:00:07]} 60. Kg1 {[%clk 0:00:15.2]}
60... Nd3 {[%clk 0:00:07.2]} 61. Kh2 {[%clk 0:00:15.2]} 61... Kf2 {[%clk
0:00:07.8]} 62. Kh3 {[%clk 0:00:15.9]} 62... g1=Q {[%clk 0:00:07.8]} 63. Kh4
{[%clk 0:00:16.8]} 63... Qg6 {[%clk 0:00:07.5]} 64. Kh3 {[%clk 0:00:17.2]} 64...
Qg3# {[%clk 0:00:08.1]} 0-1

[Event "Late-Titled-Tuesday-Blitz-February-06-2024"]
[Site "Chess.com"]
[Date "2024.02.06"]
[Round "6"]
[White "zverr1"]
[Black "GadimbayliA"]
[Result "0-1"]
[WhiteElo "2581"]
[BlackElo "2813"]
[TimeControl "180+1"]
[EndTime "15:07:25 PST"]
[Termination "GadimbayliA won on time"]

1. e4 {[%clk 0:03:00.9]} 1... e5 {[%clk 0:02:58.2]} 2. Nf3 {[%clk 0:03:00.7]}
2... d5 {[%clk 0:02:58.8]} 3. exd5 {[%clk 0:02:58.5]} 3... e4 {[%clk 0:02:59.7]}
4. Qe2 {[%clk 0:02:58.4]} 4... Nf6 {[%clk 0:03:00.1]} 5. d3 {[%clk 0:02:58.2]}
5... Bb4+ {[%clk 0:02:58.8]} 6. c3 {[%clk 0:02:57.3]} 6... O-O {[%clk
0:02:59.7]} 7. dxe4 {[%clk 0:02:51.9]} 7... Bd6 {[%clk 0:02:59.8]} 8. Be3 {[%clk
0:02:31.3]} 8... Nxe4 {[%clk 0:02:58.5]} 9. Qc2 {[%clk 0:02:29.4]} 9... Re8
{[%clk 0:02:49.2]} 10. Bd3 {[%clk 0:02:28.4]} 10... Bf5 {[%clk 0:02:49.8]} 11.
Nbd2 {[%clk 0:02:21.3]} 11... Nxd2 {[%clk 0:02:50]} 12. Qxd2 {[%clk 0:02:16.7]}
12... Bg4 {[%clk 0:02:23.5]} 13. O-O-O {[%clk 0:01:57.1]} 13... Nd7 {[%clk
0:02:19.4]} 14. Be2 {[%clk 0:01:40.8]} 14... Nc5 {[%clk 0:02:07]} 15. Nd4 {[%clk
0:01:30.3]} 15... Bxe2 {[%clk 0:01:58.5]} 16. Qxe2 {[%clk 0:01:31.2]} 16... Bf4
{[%clk 0:01:51.8]} 17. Qf3 {[%clk 0:01:25.1]} 17... Bxe3+ {[%clk 0:01:42.1]} 18.
fxe3 {[%clk 0:01:26]} 18... Re5 {[%clk 0:01:39.5]} 19. Nb3 {[%clk 0:01:14.4]}
19... Nxb3+ {[%clk 0:01:17.2]} 20. axb3 {[%clk 0:01:15.3]} 20... Qe7 {[%clk
0:01:18.1]} 21. Rhe1 {[%clk 0:01:05.5]} 21... a5 {[%clk 0:01:16.6]} 22. Rd4
{[%clk 0:01:01]} 22... Re8 {[%clk 0:01:08.5]} 23. Kd2 {[%clk 0:00:57.3]} 23...
Qc5 {[%clk 0:01:04.3]} 24. d6 {[%clk 0:00:39.1]} 24... cxd6 {[%clk 0:00:57.9]}
25. Qxb7 {[%clk 0:00:39]} 25... g6 {[%clk 0:00:51.9]} 26. b4 {[%clk 0:00:22.4]}
26... axb4 {[%clk 0:00:50.5]} 27. Qxb4 {[%clk 0:00:23.3]} 27... Qc6 {[%clk
0:00:50.3]} 28. Re2 {[%clk 0:00:22.3]} 28... d5 {[%clk 0:00:45.5]} 29. Qa4
{[%clk 0:00:18.4]} 29... Qe6 {[%clk 0:00:45.5]} 30. Rd3 {[%clk 0:00:15.6]} 30...
Rb8 {[%clk 0:00:46.2]} 31. b4 {[%clk 0:00:12.9]} 31... Re4 {[%clk 0:00:45.9]}
32. Qa5 {[%clk 0:00:11.8]} 32... Re5 {[%clk 0:00:43]} 33. Rd4 {[%clk 0:00:10.6]}
33... Qc6 {[%clk 0:00:41.2]} 34. e4 {[%clk 0:00:08]} 34... Rc8 {[%clk
0:00:40.3]} 35. Re3 {[%clk 0:00:08.2]} 35... Rg5 {[%clk 0:00:39.3]} 36. g3
{[%clk 0:00:08.1]} 36... Qf6 {[%clk 0:00:24.8]} 37. Rxd5 {[%clk 0:00:08.5]}
37... Qf2+ {[%clk 0:00:20.2]} 38. Re2 {[%clk 0:00:09]} 38... Qf6 {[%clk
0:00:20.7]} 39. Re3 {[%clk 0:00:05.5]} 39... Rg4 {[%clk 0:00:16.8]} 40. Qb5
{[%clk 0:00:02.5]} 40... Qe6 {[%clk 0:00:06]} 41. Qd3 {[%clk 0:00:02.7]} 41...
Re8 {[%clk 0:00:05.6]} 42. Rd4 {[%clk 0:00:02.3]} 42... Rg5 {[%clk 0:00:05.7]}
43. Rd8 {[%clk 0:00:02]} 43... Re5 {[%clk 0:00:05.2]} 44. Rxe8+ {[%clk
0:00:02.5]} 44... Qxe8 {[%clk 0:00:06.1]} 45. Qd4 {[%clk 0:00:02.7]} 45... Re7
{[%clk 0:00:06.6]} 46. Kc2 {[%clk 0:00:02]} 46... Qa4+ {[%clk 0:00:06.6]} 47.
Kd2 {[%clk 0:00:01.6]} 47... Rd7 {[%clk 0:00:07.5]} 48. Rd3 {[%clk 0:00:02.2]}
48... Rxd4 {[%clk 0:00:07.8]} 49. Rxd4 {[%clk 0:00:01.7]} 49... Qa2+ {[%clk
0:00:08.7]} 50. Kd3 {[%clk 0:00:02]} 50... Qxh2 {[%clk 0:00:09.6]} 51. b5 {[%clk
0:00:02]} 51... Qxg3+ {[%clk 0:00:10.2]} 52. Kc4 {[%clk 0:00:02.7]} 52... h5
{[%clk 0:00:11.1]} 53. b6 {[%clk 0:00:02.9]} 53... h4 {[%clk 0:00:10.8]} 54. Kb5
{[%clk 0:00:01.7]} 54... h3 {[%clk 0:00:11]} 55. Rd8+ {[%clk 0:00:01.4]} 55...
Kg7 {[%clk 0:00:10.7]} 56. b7 {[%clk 0:00:02.3]} 56... Qg5+ {[%clk 0:00:11.1]}
0-1

[Event "Late-Titled-Tuesday-Blitz-February-06-2024"]
[Site "Chess.com"]
[Date "2024.02.06"]
[Round "6"]
[White "AsterPhoenix"]
[Black "ElDivis"]
[Result "1-0"]
[WhiteElo "2632"]
[BlackElo "2416"]
[TimeControl "180+1"]
[EndTime "15:07:26 PST"]
[Termination "AsterPhoenix won by resignation"]

1. e4 {[%clk 0:03:00.9]} 1... c5 {[%clk 0:02:59.2]} 2. b4 {[%clk 0:03:00.2]}
2... cxb4 {[%clk 0:02:58.4]} 3. a3 {[%clk 0:03:00.5]} 3... d5 {[%clk 0:02:58.6]}
4. exd5 {[%clk 0:03:00.7]} 4... Nf6 {[%clk 0:02:52.9]} 5. axb4 {[%clk
0:03:00.4]} 5... Nxd5 {[%clk 0:02:52.4]} 6. b5 {[%clk 0:02:59.8]} 6... e6 {[%clk
0:02:51.8]} 7. Bb2 {[%clk 0:02:59.4]} 7... Nf6 {[%clk 0:02:50.9]} 8. Nf3 {[%clk
0:02:55.7]} 8... Be7 {[%clk 0:02:48.4]} 9. d4 {[%clk 0:02:54.5]} 9... O-O {[%clk
0:02:48.4]} 10. Bd3 {[%clk 0:02:54.6]} 10... b6 {[%clk 0:02:45.8]} 11. O-O
{[%clk 0:02:52.6]} 11... a5 {[%clk 0:02:43.6]} 12. c4 {[%clk 0:02:36.3]} 12...
Bb7 {[%clk 0:02:43.4]} 13. Nbd2 {[%clk 0:02:31]} 13... Nbd7 {[%clk 0:02:43.6]}
14. Qe2 {[%clk 0:02:30.9]} 14... Rc8 {[%clk 0:02:43.8]} 15. Rfd1 {[%clk
0:02:29.9]} 15... Qc7 {[%clk 0:02:41.9]} 16. Rac1 {[%clk 0:02:26.3]} 16... Qf4
{[%clk 0:02:41.9]} 17. d5 {[%clk 0:02:12.7]} 17... Nc5 {[%clk 0:02:20.1]} 18.
Be5 {[%clk 0:01:59.4]} 18... Qg4 {[%clk 0:02:14.6]} 19. h3 {[%clk 0:01:55.6]}
19... Qh5 {[%clk 0:02:11]} 20. d6 {[%clk 0:01:55.9]} 20... Bd8 {[%clk
0:02:02.9]} 21. Bb1 {[%clk 0:01:56]} 21... Nfd7 {[%clk 0:02:00.4]} 22. Bh2
{[%clk 0:01:47.3]} 22... Bf6 {[%clk 0:01:56.4]} 23. Ne4 {[%clk 0:01:37]} 23...
Nxe4 {[%clk 0:01:45.4]} 24. Bxe4 {[%clk 0:01:37.9]} 24... Bxe4 {[%clk
0:01:45.4]} 25. Qxe4 {[%clk 0:01:38.8]} 25... Rfd8 {[%clk 0:01:41.6]} 26. Rc2
{[%clk 0:01:09.7]} 26... Nc5 {[%clk 0:01:37.8]} 27. Qg4 {[%clk 0:01:09.3]} 27...
Qxg4 {[%clk 0:01:36.5]} 28. hxg4 {[%clk 0:01:10.2]} 28... h6 {[%clk 0:01:28.8]}
29. Be5 {[%clk 0:01:10.2]} 29... Nb7 {[%clk 0:01:09.4]} 30. d7 {[%clk
0:00:53.2]} 30... Rc5 {[%clk 0:00:59.3]} 31. Bf4 {[%clk 0:00:53.5]} 31... a4
{[%clk 0:00:45]} 32. Be3 {[%clk 0:00:53.1]} 32... a3 {[%clk 0:00:43.9]} 33. Bxc5
{[%clk 0:00:49.7]} 33... Nxc5 {[%clk 0:00:44.8]} 34. Ra2 {[%clk 0:00:43.5]}
34... Bb2 {[%clk 0:00:43.9]} 35. Ne1 {[%clk 0:00:40.9]} 35... Ne4 {[%clk
0:00:30.4]} 36. Rd3 {[%clk 0:00:12.8]} 36... Nc3 {[%clk 0:00:24.6]} 37. Rxc3
{[%clk 0:00:13.1]} 37... Bxc3 {[%clk 0:00:25.5]} 38. Nc2 {[%clk 0:00:13.1]}
38... Rxd7 {[%clk 0:00:18.6]} 39. Rxa3 {[%clk 0:00:13.6]} 39... Rd1+ {[%clk
0:00:15.7]} 40. Kh2 {[%clk 0:00:13.1]} 40... Be5+ {[%clk 0:00:16.6]} 41. g3
{[%clk 0:00:13.2]} 41... Rd2 {[%clk 0:00:17.2]} 42. Ne1 {[%clk 0:00:07.2]} 42...
Rxf2+ {[%clk 0:00:17.3]} 43. Kh3 {[%clk 0:00:07.8]} 43... Kh7 {[%clk 0:00:15.7]}
44. Nf3 {[%clk 0:00:05.5]} 44... Bd6 {[%clk 0:00:16]} 45. Rd3 {[%clk 0:00:04.6]}
45... Bc5 {[%clk 0:00:16]} 46. Ne5 {[%clk 0:00:04.5]} 46... f6 {[%clk
0:00:14.5]} 47. Nd7 {[%clk 0:00:04.6]} 47... Rc2 {[%clk 0:00:13.7]} 48. Nxc5
{[%clk 0:00:04.2]} 48... bxc5 {[%clk 0:00:14.6]} 49. Rb3 {[%clk 0:00:04.2]}
49... Rd2 {[%clk 0:00:13.7]} 50. b6 {[%clk 0:00:04.5]} 50... Rd8 {[%clk
0:00:14]} 51. b7 {[%clk 0:00:04]} 51... Rb8 {[%clk 0:00:14.7]} 52. Rb6 {[%clk
0:00:04.1]} 52... Kg6 {[%clk 0:00:14.4]} 53. Kg2 {[%clk 0:00:03.3]} 53... Kg5
{[%clk 0:00:14.1]} 54. Kf3 {[%clk 0:00:03.6]} 54... e5 {[%clk 0:00:14.7]} 55.
Ke4 {[%clk 0:00:03.1]} 55... Kxg4 {[%clk 0:00:14.9]} 56. Kd5 {[%clk 0:00:03.6]}
56... Kxg3 {[%clk 0:00:15.4]} 57. Kxc5 {[%clk 0:00:04]} 57... e4 {[%clk
0:00:16]} 58. Kc6 {[%clk 0:00:04]} 58... e3 {[%clk 0:00:16.2]} 59. Kc7 {[%clk
0:00:03.5]} 59... e2 {[%clk 0:00:16.3]} 60. Rb1 {[%clk 0:00:03.6]} 60... Re8
{[%clk 0:00:16.7]} 61. c5 {[%clk 0:00:03.6]} 61... f5 {[%clk 0:00:16.7]} 62. c6
{[%clk 0:00:04.1]} 62... f4 {[%clk 0:00:17.3]} 63. Kd7 {[%clk 0:00:04.7]} 63...
Rf8 {[%clk 0:00:17.1]} 64. c7 {[%clk 0:00:04.9]} 64... f3 {[%clk 0:00:17.7]} 65.
b8=Q {[%clk 0:00:04.5]} 65... Rxb8 {[%clk 0:00:17.9]} 66. cxb8=Q+ {[%clk
0:00:05.4]} 1-0